bitfinex/quotes_BTCUSD_20260311
["timestamp","ask_amount","ask_price","bid_price","bid_amount"]
[1773191003180,0.07136026,70067.0,70052.0,0.04100921]
[1773191003517,0.00144,70066.0,70052.0,0.04100921]
[1773191004926,0.07136026,70067.0,70052.0,0.04100921]
[1773191004927,0.00144,70065.0,70052.0,0.04100921]
[1773191005451,0.07280332,70064.0,70052.0,0.04100921]
[1773191005588,0.07280332,70064.0,70058.0,0.0002]
[1773191005788,0.00144,70063.0,70058.0,0.0002]
[1773191005989,0.00144,70063.0,70052.0,0.04100921]
[1773191006229,0.00144,70063.0,70052.0,0.00011189]
[1773191006722,0.03944655,70061.0,70050.0,0.00043]
[1773191006935,0.03944655,70061.0,70049.0,0.00192]
[1773191006936,0.03944655,70061.0,70049.0,0.00048]
[1773191007338,0.07136739,70060.0,70050.0,0.04089732]
[1773191008306,0.07147559,70060.0,70050.0,0.04089732]
[1773191009458,0.0001082,70060.0,70050.0,0.04089732]
[1773191010184,0.04898074,70060.0,70043.0,0.07158448]
[1773191010360,0.03944655,70059.0,70044.0,0.00144]
[1773191011158,0.03944655,70059.0,70043.0,0.07158448]
[1773191011371,0.07136943,70058.0,70044.0,0.07282334]
[1773191011545,0.00144,70057.0,70044.0,0.07282334]
[1773191012272,0.00144,70057.0,70044.0,0.07382334]
[1773191012476,0.00144,70057.0,70044.0,0.07282334]
[1773191012673,0.00144,70057.0,70044.0,0.07238334]
[1773191012880,0.00144,70057.0,70044.0,0.07382334]
[1773191013058,0.00144,70057.0,70050.0,0.0002]
[1773191013263,0.07137147,70056.0,70050.0,0.0002]
[1773191017304,0.07097147,70056.0,70050.0,0.0002]
[1773191021101,0.07097147,70056.0,70043.0,0.0002]
[1773191021306,0.07097147,70056.0,70030.0,0.00144]
[1773191021307,0.03944655,70052.0,70030.0,0.00144]
[1773191021514,0.07138981,70038.0,70030.0,0.00011199]
[1773191021728,0.11083636,70038.0,70030.0,0.00011199]
[1773191023154,0.03594586,70037.0,70012.0,0.07703617]
[1773191023365,0.07138981,70038.0,70013.0,0.04233732]
[1773191023366,0.04887254,70030.0,70013.0,0.04233732]
[1773191023560,0.07139899,70029.0,70014.0,0.07141428]
[1773191023761,0.07139899,70029.0,70015.0,0.04089732]
[1773191024233,0.03586039,70028.0,70015.0,0.04089732]
[1773191024443,0.07139899,70029.0,70015.0,0.04089732]
[1773191025993,0.00144,70028.0,70015.0,0.04089732]
[1773191027614,0.07140103,70027.0,70015.0,0.04089732]
[1773191028055,0.07140103,70027.0,70015.0,0.04109732]
[1773191028924,0.07140103,70027.0,70010.0,0.0001969]
[1773191028925,0.08428065,70025.0,70010.0,0.0001969]
[1773191029175,0.07140103,70027.0,70011.0,0.03795256]
[1773191029838,0.07140103,70027.0,70010.0,0.12048724]
[1773191029839,0.0379169,70026.0,70015.0,0.001]
[1773191030053,0.07140103,70027.0,70016.0,0.0379067]
[1773191030278,0.05449254,70040.0,70016.0,0.0379067]
[1773191030477,0.00144,70036.0,70018.0,0.0379067]
[1773191030677,0.00144,70036.0,70020.0,0.0379067]
[1773191030848,0.07139029,70038.0,70022.0,0.0379067]
[1773191031050,0.00144,70037.0,70022.0,0.0379067]
[1773191031747,0.07139029,70038.0,70022.0,0.0379067]
[1773191031748,0.07283029,70038.0,70024.0,0.0379067]
[1773191032181,0.07139029,70038.0,70025.0,0.00144]
[1773191032380,0.07283029,70038.0,70026.0,0.0379067]
[1773191032783,0.11074719,70038.0,70025.0,0.00144]
[1773191032991,0.07283029,70038.0,70025.0,0.0393467]
[1773191033530,0.00144,70038.0,70025.0,0.0393467]
[1773191033666,0.07282879,70039.0,70025.0,0.0393467]
[1773191033865,0.07138879,70039.0,70027.0,0.0379067]
[1773191034421,0.07138285,70045.0,70027.0,0.0379067]
[1773191034422,0.07138083,70047.0,70027.0,0.0379067]
[1773191034711,0.00144,70047.0,70027.0,0.03801848]
[1773191035263,0.00144,70047.0,70027.0,0.03901848]
[1773191035488,0.0379169,70046.0,70027.0,0.03801848]
[1773191035889,0.07138268,70045.0,70029.0,0.0379067]
[1773191036838,0.07138268,70045.0,70030.0,0.00144]
[1773191036989,0.07138268,70045.0,70031.0,0.0379067]
[1773191037186,0.07138268,70045.0,70027.0,0.00111178]
[1773191037388,0.0379169,70044.0,70024.0,0.08153738]
[1773191037639,0.03802889,70044.0,70025.0,0.0379067]
[1773191037846,0.0379169,70042.0,70025.0,0.0379067]
[1773191038250,0.00144,70041.0,70026.0,0.0393467]
[1773191039272,0.00144,70040.0,70026.0,0.0393467]
[1773191040372,0.07149596,70044.0,70028.0,0.0379067]
[1773191040922,0.07149596,70044.0,70040.0,0.0004]
[1773191041123,0.07160778,70050.0,70040.0,0.0383067]
[1773191041343,0.07160821,70050.0,70040.0,0.0383067]
[1773191041824,0.07160782,70050.0,70040.0,0.0383067]
[1773191042415,0.00023,70050.0,70042.0,0.0379067]
[1773191042608,0.07137218,70056.0,70042.0,0.0379067]
[1773191042844,0.00022001,70048.0,70042.0,0.0379067]
[1773191042970,0.07137218,70056.0,70043.0,0.00144]
[1773191043172,0.07137218,70056.0,70044.0,0.0379067]
[1773191043648,0.00022001,70057.0,70044.0,0.0379067]
[1773191043809,0.07159148,70057.0,70044.0,0.0379067]
[1773191044010,0.07137218,70056.0,70044.0,0.0379067]
[1773191044341,0.07137218,70056.0,70045.0,0.07138268]
[1773191044563,0.07137218,70056.0,70046.0,0.0379067]
[1773191045347,0.00022001,70057.0,70046.0,0.0379067]
[1773191045925,0.07159131,70057.0,70046.0,0.0379067]
[1773191046357,0.07159131,70057.0,70047.0,0.07138064]
[1773191046558,0.07159131,70057.0,70048.0,0.0379067]
[1773191047686,0.07159131,70057.0,70044.0,0.0387071]
[1773191047889,0.07159131,70057.0,70040.0,0.07178766]
[1773191047890,0.0379169,70056.0,70040.0,0.0004]
[1773191048586,0.0379169,70054.0,70040.0,0.0004]
[1773191048794,0.0379169,70052.0,70040.0,0.0004]
[1773191049497,0.00144,70053.0,70040.0,0.07178738]
[1773191049796,0.00144,70053.0,70040.0,0.0004]
[1773191049973,0.0393569,70053.0,70040.0,0.0004]
[1773191050560,0.07137554,70052.0,70040.0,0.0004]
[1773191052007,0.07237554,70052.0,70040.0,0.0004]
[1773191052365,0.07237554,70052.0,70041.0,0.0379067]
[1773191052718,0.07381554,70052.0,70041.0,0.0379067]
[1773191053895,0.07281554,70052.0,70041.0,0.0379067]
[1773191054490,0.07137554,70052.0,70041.0,0.07138633]
[1773191054692,0.07281554,70053.0,70042.0,0.0379067]
[1773191055770,0.07137554,70053.0,70042.0,0.0379067]
[1773191056138,0.07281554,70053.0,70042.0,0.0379067]
[1773191057205,0.07137554,70053.0,70042.0,0.0379067]
[1773191057362,0.07281554,70053.0,70042.0,0.0379067]
[1773191058162,0.07381554,70053.0,70042.0,0.0379067]
[1773191058363,0.07281554,70053.0,70042.0,0.0379067]
[1773191058716,0.03281554,70053.0,70042.0,0.0379067]
[1773191059206,0.03137554,70053.0,70042.0,0.0381067]
[1773191059518,0.00144,70052.0,70040.0,0.0004]
[1773191059754,0.14678547,70050.0,70026.0,0.0393381]
[1773191059926,0.03925375,70049.0,70026.0,0.00011199]
[1773191060130,0.1422866,70049.0,70027.0,0.0002]
[1773191060343,0.03925375,70049.0,70027.0,0.0002]
[1773191060492,0.03925375,70048.0,70026.0,0.00011199]
[1773191060706,0.03925375,70048.0,69998.0,0.00048]
[1773191060707,0.15290822,70039.0,70008.0,0.07141988]
[1773191060909,0.15290822,70039.0,70007.0,0.0002]
[1773191060910,0.03925375,70029.0,70007.0,0.0002]
[1773191061173,0.14678547,70030.0,70000.0,0.00323]
[1773191061174,0.03925375,70027.0,70000.0,0.00323]
[1773191061380,0.03925375,70027.0,70002.0,0.07142608]
[1773191061578,0.03925375,70027.0,70000.0,0.00323]
[1773191061854,0.03925375,70018.0,70000.0,0.00323]
[1773191062088,0.03925375,70016.0,70000.0,0.00323]
[1773191062436,0.00144,70018.0,70002.0,0.0393381]
[1773191062649,0.07141122,70017.0,70004.0,0.0393381]
[1773191063068,0.07141122,70018.0,70004.0,0.0393381]
[1773191063272,0.07141122,70017.0,70004.0,0.03939144]
[1773191064701,0.07141122,70017.0,70005.0,0.00144]
[1773191065106,0.11186541,70017.0,70005.0,0.07286291]
[1773191065654,0.04045419,70016.0,70005.0,0.07286291]
[1773191066112,0.07141122,70017.0,70005.0,0.07286291]
[1773191066313,0.07141062,70018.0,70005.0,0.07286291]
[1773191067515,0.03141062,70018.0,70005.0,0.07286291]
[1773191067887,0.03141062,70018.0,70000.0,0.00323]
[1773191067888,0.04062154,70017.0,70000.0,0.00323]
[1773191069690,0.04056583,70015.0,70000.0,0.00323]
[1773191070030,0.04056583,70015.0,69993.0,0.07143527]
[1773191070031,0.04056583,70015.0,69990.0,0.0714385]
[1773191070329,0.04056583,70015.0,69990.0,0.07149186]
[1773191071092,0.04063995,70022.0,69993.0,0.00081978]
[1773191071294,0.04063995,70022.0,69992.0,0.08823674]
[1773191071295,0.001,70015.0,69995.0,0.00081978]
[1773191071498,0.00104,70020.0,69995.0,0.00081978]
[1773191071702,0.00144,70020.0,69997.0,0.000762]
[1773191072123,0.07140714,70021.0,69997.0,0.000762]
[1773191072299,0.00144,70020.0,69997.0,0.000762]
[1773191072719,0.001,70015.0,69997.0,0.000762]
[1773191072919,0.04104984,70028.0,69997.0,0.000762]
[1773191073183,0.07304901,70024.0,69997.0,0.000762]
[1773191073485,0.11409885,70024.0,69997.0,0.001]
[1773191073792,0.11409885,70024.0,69996.0,0.07143265]
[1773191073986,0.11409885,70024.0,69998.0,0.07143061]
[1773191074370,0.07139496,70033.0,70010.0,0.14678547]
[1773191074694,0.07139496,70033.0,70011.0,0.00144]
[1773191074899,0.000204,70035.0,70012.0,0.00144]
[1773191075102,0.000204,70035.0,70013.0,0.00144]
[1773191075309,0.04099651,70041.0,70014.0,0.00144]
[1773191075310,0.07700779,70040.0,70014.0,0.00144]
[1773191075603,0.00562,70040.0,70021.0,0.08823674]
[1773191075852,0.00562,70040.0,70022.0,0.00144]
[1773191076055,0.07711982,70040.0,70023.0,0.0714051]
[1773191076245,0.04099651,70039.0,70024.0,0.00144]
[1773191078309,0.04094674,70037.0,70025.0,0.00144]
[1773191080028,0.04094674,70037.0,70025.0,0.00244]
[1773191080632,0.07139185,70036.0,70025.0,0.00144]
[1773191080836,0.11223344,70036.0,70025.0,0.00144]
[1773191081828,0.11223344,70036.0,70025.0,0.00244]
[1773191082031,0.11223344,70036.0,70025.0,0.00144]
[1773191082691,0.07139185,70036.0,70025.0,0.00144]
[1773191082907,0.04078516,70035.0,70026.0,0.07140205]
[1773191083089,0.07139147,70037.0,70026.0,0.07140205]
[1773191083674,0.04078516,70036.0,70026.0,0.07140205]
[1773191084877,0.07139287,70035.0,70026.0,0.07140205]
[1773191086081,0.07139028,70038.0,70026.0,0.07140205]
[1773191086288,0.07138887,70039.0,70026.0,0.07140205]
[1773191086490,0.1120564,70052.0,70030.0,0.14678547]
[1773191086662,0.07160763,70050.0,70030.0,0.00011198]
[1773191087661,0.07160763,70050.0,70031.0,0.00144]
[1773191088269,0.0004,70040.0,70031.0,0.00144]
[1773191088873,0.0004,70040.0,70032.0,0.07139593]
[1773191090601,0.04058646,70039.0,70030.0,0.07294968]
[1773191090817,0.04058646,70039.0,70031.0,0.001]
[1773191091017,0.04058646,70039.0,70030.0,0.07294968]
[1773191091466,0.04058646,70039.0,70032.0,0.001]
[1773191091752,0.04058646,70039.0,70030.0,0.07294968]
[1773191093237,0.04058646,70039.0,70032.0,0.07139593]
[1773191096024,0.07138346,70045.0,70032.0,0.07139593]
[1773191096430,0.11180474,70045.0,70032.0,0.07139593]
[1773191096625,0.04042128,70044.0,70032.0,0.07139593]
[1773191098228,0.07138472,70043.0,70032.0,0.07239593]
[1773191098422,0.11175402,70043.0,70032.0,0.07239593]
[1773191098869,0.07138472,70043.0,70032.0,0.07239593]
[1773191099063,0.0403693,70042.0,70032.0,0.07239593]
[1773191100253,0.00144,70046.0,70032.0,0.07139593]
[1773191100449,0.07282178,70046.0,70032.0,0.07239593]
[1773191100850,0.00022001,70061.0,70032.0,0.07139593]
[1773191101083,0.04053569,70061.0,70032.0,0.07139593]
[1773191101280,0.11190265,70061.0,70032.0,0.07139593]
[1773191101449,0.04053569,70061.0,70032.0,0.07139593]
[1773191101671,0.00022001,70061.0,70032.0,0.07239593]
[1773191101892,0.00022001,70061.0,70040.0,0.14678547]
[1773191102072,0.00022001,70064.0,70041.0,0.00144]
[1773191102276,0.0715836,70064.0,70042.0,0.07138573]
[1773191102724,0.00022001,70064.0,70042.0,0.07138573]
[1773191103017,0.04048238,70064.0,70042.0,0.07138573]
[1773191103374,0.04048238,70064.0,70043.0,0.00144]
[1773191103572,0.04048238,70064.0,70042.0,0.07138573]
[1773191103573,0.00022001,70057.0,70044.0,0.00144]
[1773191103814,0.04048238,70064.0,70045.0,0.00144]
[1773191103977,0.11184583,70064.0,70045.0,0.00144]
[1773191104477,0.11184583,70064.0,70046.0,0.07138166]
[1773191104690,0.04048238,70064.0,70046.0,0.07138166]
[1773191105308,0.04048238,70064.0,70049.0,0.00048]
[1773191105509,0.00022001,70064.0,70049.0,0.00048]
[1773191105735,0.04021757,70083.0,70054.0,0.29357094]
[1773191105934,0.04021757,70083.0,70051.0,0.08484144]
[1773191105935,0.00562,70096.0,70071.0,0.0366785]
[1773191106252,0.03887275,70091.0,70073.0,0.0366785]
[1773191106450,0.03887275,70091.0,70075.0,0.0366785]
[1773191106451,0.11020892,70091.0,70075.0,0.0366785]
[1773191106640,0.0003225,70093.0,70075.0,0.0366785]
[1773191106841,0.00069613,70093.0,70077.0,0.0366785]
[1773191107349,0.07203011,70093.0,70077.0,0.0366785]
[1773191108234,0.07203011,70093.0,70077.0,0.0376785]
[1773191108380,0.03887275,70092.0,70078.0,0.07134906]
[1773191109029,0.03887275,70092.0,70079.0,0.02159041]
[1773191110543,0.00091614,70093.0,70080.0,0.03134703]
[1773191110687,0.00022001,70101.0,70083.0,0.02153975]
[1773191110892,0.00022001,70101.0,70082.0,0.08484144]
[1773191110893,0.00334206,70100.0,70085.0,0.02113975]
[1773191111100,0.00022001,70110.0,70085.0,0.02113975]
[1773191111101,0.00022001,70108.0,70085.0,0.02113975]
[1773191111336,0.00022001,70108.0,70085.0,0.02151338]
[1773191111537,0.00022001,70108.0,70082.0,0.08484144]
[1773191111538,0.00022001,70108.0,70086.0,0.00144]
[1773191111738,0.04068212,70107.0,70087.0,0.00029398]
[1773191112551,0.00059334,70108.0,70087.0,0.00029398]
[1773191112552,0.00059334,70108.0,70088.0,0.07133888]
[1773191112752,0.00059334,70108.0,70089.0,0.00053351]
[1773191113351,0.11200167,70107.0,70089.0,0.00053351]
[1773191113553,0.04068212,70107.0,70089.0,0.00053351]
[1773191114254,0.04068212,70107.0,70089.0,0.001]
[1773191114449,0.04068212,70107.0,70090.0,0.00052241]
[1773191114779,0.04068212,70107.0,70092.0,0.00051095]
[1773191115037,0.07131987,70107.0,70092.0,0.00051095]
[1773191115185,0.11200199,70107.0,70092.0,0.00051095]
[1773191115391,0.04068212,70107.0,70092.0,0.00051095]
[1773191115588,0.00054251,70111.0,70091.0,0.07133583]
[1773191115589,0.04068212,70121.0,70097.0,0.14678547]
[1773191115823,0.2930181,70150.0,70098.0,0.00049914]
[1773191115824,0.11198265,70126.0,70098.0,0.00049914]
[1773191116169,0.07638066,70124.0,70098.0,0.00049914]
[1773191116304,0.04068212,70123.0,70098.0,0.00049914]
[1773191116692,0.04068212,70121.0,70099.0,0.07132769]
[1773191116893,0.04068212,70121.0,70100.0,0.00144]
[1773191117144,0.04068212,70121.0,70101.0,0.00144]
[1773191117527,0.04087982,70121.0,70101.0,0.00144]
[1773191117697,0.00022001,70107.0,70101.0,0.00144]
[1773191118746,0.00022001,70107.0,70102.0,0.07132464]
[1773191118947,0.04090213,70107.0,70102.0,0.07132464]
[1773191119563,0.04090213,70107.0,70101.0,0.00144]
[1773191119764,0.04090213,70107.0,70099.0,0.07132769]
[1773191119765,0.04068212,70106.0,70099.0,0.00144]
[1773191120259,0.04068212,70106.0,70100.0,0.00048]
[1773191120865,0.04068212,70106.0,70101.0,0.00144]
[1773191122505,0.04068212,70106.0,70102.0,0.07132464]
[1773191123049,0.07132158,70105.0,70097.0,0.00037333]
[1773191123370,0.07132158,70105.0,70094.0,0.00144]
[1773191123371,0.04068212,70104.0,70094.0,0.00144]
[1773191123714,0.04105545,70104.0,70094.0,0.00144]
[1773191124253,0.04068212,70102.0,70095.0,0.07133176]
[1773191124901,0.00022001,70106.0,70095.0,0.07201946]
[1773191125237,0.00022001,70106.0,70096.0,0.0006877]
[1773191125568,0.04068212,70113.0,70096.0,0.0006877]
[1773191126538,0.07131446,70112.0,70097.0,0.07132972]
[1773191126738,0.04068212,70111.0,70097.0,0.07132972]
[1773191127857,0.0001977,70116.0,70097.0,0.07132972]
[1773191127858,0.00022001,70121.0,70101.0,0.00089172]
[1773191128083,0.00022001,70121.0,70103.0,0.00089172]
[1773191128299,0.04068212,70120.0,70103.0,0.00089172]
[1773191128588,0.04068212,70120.0,70104.0,0.0713226]
[1773191128742,0.04068212,70120.0,70104.0,0.07264568]
[1773191130514,0.00022001,70121.0,70105.0,0.03978631]
[1773191130710,0.00013,72510.0,70105.0,0.03978631]
[1773191130711,0.11430259,70134.0,70105.0,0.03978631]
[1773191130917,0.1855947,70134.0,70113.0,0.03978631]
[1773191131095,0.1855947,70134.0,70115.0,0.03978631]
[1773191131503,0.07165319,70136.0,70121.0,0.03978631]
[1773191131504,0.0003611,70136.0,70121.0,0.03978631]
[1773191131728,0.0003611,70136.0,70123.0,0.03978631]
[1773191131926,0.0003611,70136.0,70110.0,0.14652754]
[1773191131927,0.03781608,70133.0,70113.0,0.03978631]
[1773191132169,0.00022001,70128.0,70114.0,0.00144]
[1773191132346,0.03803609,70128.0,70114.0,0.00144]
[1773191132570,0.00022001,70128.0,70116.0,0.03978631]
[1773191132863,0.00033196,70128.0,70123.0,0.001]
[1773191133068,0.00033196,70128.0,70124.0,0.04122631]
[1773191133371,0.00033196,70128.0,70125.0,0.00144]
[1773191133800,0.03781608,70127.0,70107.0,0.18436797]
[1773191133973,0.03781608,70127.0,70109.0,0.07131751]
[1773191134202,0.02781608,70127.0,70109.0,0.07131751]
[1773191134405,0.02781608,70127.0,70110.0,0.03978631]
[1773191134552,0.07130023,70126.0,70111.0,0.07131548]
[1773191134755,0.07130023,70126.0,70112.0,0.00144]
[1773191136968,0.03925608,70125.0,70103.0,0.11304944]
[1773191137192,0.03925608,70125.0,70104.0,0.00144]
[1773191137394,0.03925608,70125.0,70102.0,0.07132396]
[1773191137395,0.03925608,70125.0,70105.0,0.00144]
[1773191139269,0.07130226,70124.0,70106.0,0.07132057]
[1773191139513,0.03781608,70123.0,70105.0,0.07276116]
[1773191140033,0.03781608,70123.0,70100.0,0.11327944]
[1773191140237,0.07130226,70124.0,70096.0,0.17519416]
[1773191140238,0.08644305,70109.0,70098.0,0.00144]
[1773191140444,0.08644305,70109.0,70091.0,0.00144]
[1773191140445,0.03781608,70108.0,70091.0,0.00144]
[1773191141400,0.03781608,70106.0,70092.0,0.00144]
[1773191141775,0.03781608,70104.0,70092.0,0.00144]
[1773191142012,0.03781608,70118.0,70093.0,0.03978631]
[1773191142202,0.00144,70119.0,70093.0,0.03978631]
[1773191142576,0.00144,70119.0,70093.0,0.04015964]
[1773191142751,0.03925608,70119.0,70093.0,0.04015964]
[1773191142952,0.001,70108.0,70093.0,0.04015964]
[1773191143111,0.03925608,70119.0,70093.0,0.04015964]
[1773191143542,0.03781608,70117.0,70095.0,0.03978631]
[1773191143740,0.07130836,70120.0,70095.0,0.03978631]
[1773191143741,0.07130703,70120.0,70095.0,0.03978631]
[1773191144145,0.06130703,70120.0,70095.0,0.03978631]
[1773191145553,0.07130429,70122.0,70097.0,0.03978631]
[1773191145803,0.07130429,70122.0,70099.0,0.03978631]
[1773191147692,0.07692328,70124.0,70101.0,0.03978631]
[1773191147693,0.07692243,70124.0,70101.0,0.03978631]
[1773191149522,0.04006443,70123.0,70100.0,0.07132667]
[1773191149723,0.04006443,70121.0,70101.0,0.00144]
[1773191150291,0.04006443,70119.0,70097.0,0.07132972]
[1773191150560,0.04006443,70119.0,70093.0,0.07170634]
[1773191150561,0.04006443,70119.0,70095.0,0.00144]
[1773191151986,0.04006443,70117.0,70096.0,0.07133074]
[1773191152563,0.04006443,70117.0,70101.0,0.0002]
[1773191152788,0.04006443,70117.0,70096.0,0.07113074]
[1773191153781,0.04006443,70117.0,70096.0,0.07257074]
[1773191154338,0.04006443,70115.0,70096.0,0.00144]
[1773191154636,0.07131039,70116.0,70089.0,0.00144]
[1773191154637,0.04006443,70108.0,70089.0,0.00144]
[1773191154827,0.04006443,70106.0,70089.0,0.00144]
[1773191156637,0.07132158,70105.0,70089.0,0.00144]
[1773191156814,0.02006978,70104.0,70089.0,0.00144]
[1773191157018,0.02006978,70104.0,70086.0,0.0002]
[1773191157216,0.02006978,70104.0,70087.0,0.00144]
[1773191159377,0.02010429,70102.0,70089.0,0.0002]
[1773191159523,0.02154723,70101.0,70089.0,0.0002]
[1773191161454,0.07132667,70100.0,70089.0,0.0002]
[1773191162634,0.02011292,70099.0,70089.0,0.0002]
[1773191162804,0.02011292,70099.0,70085.0,0.00144]
[1773191163180,0.02011292,70099.0,70085.0,0.07278165]
[1773191163383,0.07132871,70098.0,70085.0,0.00144]
[1773191163583,0.01993519,70097.0,70085.0,0.07278158]
[1773191163921,0.01975393,70097.0,70085.0,0.07278158]
[1773191164128,0.00975393,70097.0,70085.0,0.07134158]
[1773191164323,0.07132871,70098.0,70085.0,0.11191035]
[1773191166201,0.07132871,70099.0,70085.0,0.11191035]
[1773191166692,0.07132871,70099.0,70085.0,0.00144]
[1773191167033,0.07132871,70099.0,70085.0,0.00164]
[1773191167514,0.08117661,70099.0,70085.0,0.07298162]
[1773191168215,0.08117661,70099.0,70085.0,0.07154162]
[1773191168418,0.08117661,70099.0,70085.0,0.07298162]
[1773191168932,0.07132871,70099.0,70084.0,1e-08]
[1773191169082,0.07132871,70099.0,70079.0,0.07134798]
[1773191169083,0.00985376,70098.0,70067.0,0.03912877]
[1773191169292,0.00985376,70089.0,70069.0,0.00144]
[1773191169494,0.00985376,70087.0,70069.0,0.00144]
[1773191169896,0.00967252,70087.0,70069.0,0.00144]
[1773191170097,0.00967252,70087.0,70068.0,0.07697906]
[1773191170309,0.00967252,70087.0,70066.0,1e-08]
[1773191170310,0.14652754,70080.0,70066.0,1e-08]
[1773191170513,0.00968927,70078.0,70066.0,1e-08]
[1773191170826,0.00969528,70076.0,70066.0,1e-08]
[1773191171495,0.01006837,70076.0,70066.0,1e-08]
[1773191172326,0.07135212,70075.0,70066.0,0.03912878]
[1773191172539,0.07234723,70080.0,70068.0,0.03912877]
[1773191172802,0.07234723,70080.0,70068.0,0.03950186]
[1773191173006,0.07134723,70080.0,70068.0,0.03950186]
[1773191173742,0.06134723,70080.0,70068.0,0.04050186]
[1773191174143,0.06134723,70080.0,70068.0,0.03950186]
[1773191174377,0.07134295,70084.0,70069.0,0.07135823]
[1773191174554,0.07134295,70084.0,70069.0,0.110487]
[1773191175154,0.07134295,70084.0,70070.0,0.00144]
[1773191175386,0.07134295,70084.0,70070.0,0.04056877]
[1773191175987,0.07116167,70084.0,70070.0,0.04056877]
[1773191176619,0.07116167,70084.0,70071.0,0.11048496]
[1773191176806,0.07116167,70084.0,70072.0,0.03912877]
[1773191176965,0.01002429,70083.0,70068.0,0.00037309]
[1773191178546,0.07134499,70082.0,70068.0,0.00037309]
[1773191178746,0.00999961,70081.0,70068.0,0.00037309]
[1773191179446,0.00963712,70081.0,70068.0,0.00037309]
[1773191180647,0.04219727,70079.0,70068.0,0.00037309]
[1773191180845,0.04219727,70077.0,70068.0,0.00037309]
[1773191181701,0.04219727,70077.0,70068.0,1e-08]
[1773191181921,0.04219727,70077.0,70066.0,0.0002]
[1773191181922,0.04219727,70077.0,70066.0,2e-08]
[1773191182145,0.04257036,70077.0,70066.0,2e-08]
[1773191183046,0.04219727,70075.0,70066.0,2e-08]
[1773191184967,0.07135314,70074.0,70066.0,2e-08]
[1773191185120,0.04219727,70073.0,70066.0,2e-08]
[1773191186111,0.04201601,70073.0,70066.0,2e-08]
[1773191187167,0.07135517,70072.0,70066.0,2e-08]
[1773191188164,0.11355244,70072.0,70066.0,2e-08]
[1773191190778,0.19920671,70089.0,70066.0,0.0713613]
[1773191190779,0.07135002,70078.0,70066.0,0.0713613]
[1773191190975,0.07135002,70078.0,70066.0,0.07173439]
[1773191192670,0.07135002,70078.0,70066.0,0.00037311]
[1773191192877,0.04363727,70077.0,70065.0,0.00026591]
[1773191193095,0.04401036,70077.0,70065.0,0.00026591]
[1773191193543,0.0713511,70076.0,70066.0,0.001]
[1773191193719,0.04219727,70075.0,70065.0,0.00026591]
[1773191195076,0.04219727,70073.0,70065.0,0.00026591]
[1773191195604,0.07135517,70072.0,70065.0,0.00026591]
[1773191195803,0.11355244,70072.0,70065.0,0.00026591]
[1773191197420,0.00018097,70071.0,70065.0,0.00026591]
[1773191198747,0.00018097,70071.0,70065.0,0.00046591]
[1773191198942,0.00018097,70071.0,70065.0,0.07182809]
[1773191199168,0.00022001,70075.0,70065.0,0.07182809]
[1773191199169,0.07157273,70075.0,70065.0,0.07182809]
[1773191199389,0.07157273,70075.0,70066.0,0.03962017]
[1773191199792,0.07157273,70075.0,70066.0,0.11098095]
[1773191202590,0.07157273,70075.0,70066.0,0.07136078]
[1773191203291,0.04219727,70074.0,70065.0,0.00046591]
[1773191203492,0.04219727,70074.0,70060.0,0.0715672]
[1773191203744,0.04219727,70074.0,70061.0,0.00144]
[1773191204085,0.04219727,70072.0,70061.0,0.00144]
[1773191204288,0.04219727,70072.0,70060.0,0.0002]
[1773191204493,0.04219727,70072.0,70060.0,0.00164]
[1773191204890,0.00144,70071.0,70060.0,0.0002]
[1773191205093,0.04219727,70070.0,70060.0,0.0002]
[1773191206307,0.1135555,70069.0,70060.0,0.0002]
[1773191208068,0.1135555,70069.0,70053.0,0.07137443]
[1773191208069,0.04231707,70068.0,70040.0,0.0480654]
[1773191208240,0.04231707,70066.0,70041.0,0.0728266]
[1773191208439,0.04231707,70065.0,70044.0,0.00164]
[1773191208598,0.04231707,70063.0,70044.0,0.0002]
[1773191208790,0.04231707,70063.0,70044.0,0.00164]
[1773191209352,0.04231707,70063.0,70045.0,0.0002]
[1773191209547,0.00144,70064.0,70045.0,0.0002]
[1773191209746,0.04193814,70063.0,70045.0,0.0002]
[1773191209947,0.04293814,70063.0,70045.0,0.0002]
[1773191210161,0.07136536,70062.0,70045.0,0.0002]
[1773191210328,0.04193814,70061.0,70046.0,0.04075265]
[1773191210528,0.04337814,70061.0,70046.0,0.04075265]
[1773191212258,0.07136739,70060.0,70046.0,0.11213349]
[1773191212443,0.07136739,70060.0,70046.0,0.07138084]
[1773191212638,0.11330553,70060.0,70046.0,0.07138084]
[1773191213467,0.06136739,70060.0,70046.0,0.07138084]
[1773191213949,0.06136739,70060.0,70047.0,0.04075265]
[1773191214434,0.05136739,70060.0,70048.0,0.11213227]
[1773191215379,0.04337814,70059.0,70038.0,0.00144]
[1773191215579,0.04337814,70059.0,70039.0,0.00144]
[1773191216236,0.07137045,70057.0,70038.0,0.00144]
[1773191216571,0.04193814,70056.0,70038.0,0.00144]
[1773191217970,0.04193814,70056.0,70038.0,0.04219265]
[1773191218617,0.04193814,70054.0,70038.0,0.11358215]
[1773191218812,0.00144,70053.0,70038.0,0.11358215]
[1773191219955,0.00144,70053.0,70038.0,0.11369421]
[1773191220453,0.04337814,70053.0,70038.0,0.00155206]
[1773191220703,0.14668513,70050.0,70031.0,0.0002]
[1773191220875,0.04193814,70048.0,70033.0,0.00144]
[1773191221077,0.07137552,70052.0,70033.0,0.00144]
[1773191221078,0.07137552,70052.0,70034.0,0.04075265]
[1773191221379,0.00144,70051.0,70034.0,0.04075265]
[1773191222363,0.00144,70050.0,70034.0,0.04075265]
[1773191222781,0.0728186,70049.0,70036.0,0.04075265]
[1773191223316,0.18532278,70063.0,70035.0,0.07139287]
[1773191223317,0.00144,70058.0,70054.0,0.00018122]
[1773191223536,0.1133035,70062.0,70046.0,0.04075265]
[1773191223707,0.00144,70059.0,70046.0,0.04075265]
[1773191223936,0.00125876,70059.0,70046.0,0.04075265]
[1773191224147,0.00022001,70063.0,70046.0,0.04075265]
[1773191224364,0.07135838,70069.0,70046.0,0.04075265]
[1773191224569,0.07279372,70074.0,70046.0,0.04075265]
[1773191224737,0.07697963,70068.0,70048.0,0.03987476]
[1773191225358,0.00562,70068.0,70050.0,0.03987476]
[1773191225725,0.00562,70068.0,70052.0,0.03987476]
[1773191226895,0.0713574,70070.0,70054.0,0.03988065]
[1773191227113,0.00166001,70071.0,70056.0,0.03988065]
[1773191227326,0.00022001,70071.0,70056.0,0.03988065]
[1773191227756,0.07157637,70071.0,70056.0,0.03988065]
[1773191229120,0.07157637,70071.0,70057.0,0.07137045]
[1773191229307,0.07157637,70071.0,70058.0,0.0399086]
[1773191232276,0.07157637,70071.0,70059.0,0.07136841]
[1773191234754,0.00085001,70075.0,70059.0,0.07136841]
[1773191235031,0.00085001,70075.0,70060.0,0.03983571]